[Event "Grand Prix Romania 1st Stage 2024"]
[Site "Bucuresti"]
[Date "2024.03.24"]
[Round "5.11"]
[White "Motylev, Alexander"]
[Black "Magold, Filip"]
[Result "1-0"]
[ECO "B23"]
[WhiteElo "2611"]
[BlackElo "2403"]
[Annotator "TA"]
[PlyCount "85"]
[EventDate "2024.03.20"]
[EventType "swiss"]
[EventCountry "ROU"]
[SourceTitle "playchess.com"]
[Source "ChessBase"]
[SourceQuality "1"]
[TimeControl "900+5"]

{[%evp 9,85,-2,-8,-7,0,-11,-5,-12,0,0,9,-2,0,-1,6,-8,0,-23,0,-63,-44,-75,-26,-65,12,0,48,31,60,60,76,70,129,129,114,110,90,109,145,107,407,404,509,481,685,677,661,638,655,653,725,404,402,394,603,591,748,732,795,744,830,841,913,772,791,780,765,899,1008,995,894,954,1382,885,29985,29984,5700,879]} 1. e4 {[%emt 0:00:03]} c5 {[%emt 0:00:02]} 2. Nc3 {[%emt 0:00:03]} d6 {[%emt 0:00:01]} 3. Nge2 {[%emt 0:00:04]} Nf6 {[%emt 0:00:03]} 4. h3 {[%emt 0:00:09]} Nc6 {[%emt 0:00:09]} 5. g4 {[%emt 0:00:33]} d5 {[%emt 0:00:03]} 6. exd5 {[%emt 0:00:01]} Nxd5 {[%emt 0:00:01]} 7. Bg2 {[%emt 0:00:01]} Nxc3 {[%emt 0:00:02]} 8. Nxc3 {[%emt 0:00:02] The position is equal.} g6 {[%emt 0:01:29]} 9. Bxc6+ {[%emt 0:00:29]} bxc6 {[%emt 0:00:04]} 10. Qf3 {[%emt 0:00:03][%cal Ob2b3]} Bg7 {[%emt 0:01:11]} 11. b3 {[%emt 0:01:15][%cal Oc1a3]} O-O {[%emt 0:01:05]} 12. Bb2 {[%emt 0:00:01][%cal Oe1c1]} Be6 {[%emt 0:00:01]} 13. Qe2 {[%emt 0:01:04]} c4 {[%emt 0:00:47]} 14. O-O-O {[%emt 0:00:23]} ({White should try} 14. Na4 $11) 14... cxb3 {[%emt 0:00:38]} 15. axb3 {[%emt 0:00:02]} a5 {[%emt 0:00:01]} (15... Rb8 $17 {...c5 is the strong threat.} 16. f4 c5) 16. d4 {[%emt 0:00:10]} Qc7 {[%emt 0:01:19]} (16... Bxd4 17. Na4 Bxb2+ 18. Kxb2 $11) (16... a4 $1 $15 17. Nxa4 Rxa4 18. bxa4 Qa5) 17. Rhe1 {[%emt 0:01:39]} Rfd8 {[%emt 0:00:12]} (17... Qf4+ $11 18. Qe3 Qxe3+ 19. fxe3 Bh6) 18. Na4 {[%emt 0:00:28]} Ra7 {[%emt 0:03:27][%cal Ba8a7,Ba7b7,Bb7b8][%mdl 32]} 19. Qe3 {[%emt 0:00:38]} Bc8 {[%emt 0:00:40]} 20. Ba3 {[%emt 0:00:48]} e6 {[%emt 0:00:44]} ({Black should play} 20... Bf8 $14) 21. Bc5 $16 {[%emt 0:00:08] White is more active.} Rb7 {[%emt 0:00:01] Prevents Bb6.} 22. f4 {[%emt 0:00:20]} Rb8 {[%emt 0:00:29]} 23. h4 {[%emt 0:00:29]} e5 {[%emt 0:00:49] [#]} 24. f5 {[%emt 0:03:09]} (24. dxe5 Bxg4 25. Bd6 Qb7 $14) 24... gxf5 $2 {[%emt 0:00:28][%mdl 8192] Loses the game.} (24... h5 $16) 25. dxe5 $18 {[%emt 0:00:16]} Re8 {[%emt 0:00:27] Black is weak on the dark squares} (25... fxg4 26. Bd6 Rxd6 27. exd6 $18) 26. Bd6 {[%emt 0:00:39]} Qb7 {[%emt 0:00:01]} (26... f4 $142) 27. gxf5 {[%emt 0:00:12]} Bxf5 {[%emt 0:00:25]} 28. Rg1 {[%emt 0:00:30] Inhibits Bg6.} Bg6 {[%emt 0:01:01]} 29. Nc5 {[%emt 0:00:08][%cal Ba4c5,Bc5d7,Bd7b8][%mdl 32]} Qb4 {[%emt 0:00:58]} 30. Nd7 {[%emt 0:01:11]} Qxh4 {[%emt 0:00:02] [#]} 31. Rh1 $1 {[%emt 0:00:21]} (31. Nxb8 $2 Bh6 $19) 31... Qg4 {[%emt 0:00:18]} (31... Qe4 $142 32. Qxe4 Bxe4 33. Bxb8 (33. Nxb8 Bxh1 34. Rxh1 Bxe5 $18) 33... Bxh1 34. Rxh1 Re6) 32. Nxb8 {[%emt 0:00:30]} Qc8 {[%emt 0:00:25]} 33. Qf3 {[%emt 0:00:27]} a4 {[%emt 0:00:08]} 34. bxa4 {[%emt 0:00:09]} Qe6 {[%emt 0:00:12]} 35. Qb3 {[%emt 0:00:07]} ({Not} 35. Qxc6 Rxb8 36. Qd5 Qf5 $14) 35... Qc8 {[%emt 0:00:03]} 36. Rd4 {[%emt 0:00:24]} c5 {[%emt 0:00:05]} 37. Rc4 {[%emt 0:00:07]} Rxe5 {[%emt 0:00:01]} 38. Bxe5 {[%emt 0:00:11]} Bxe5 {[%emt 0:00:01] [#]} 39. Re1 $1 {[%emt 0:00:16]} Bxb8 {[%emt 0:00:03]} 40. Qb5 {[%emt 0:00:07] White threatens Re8+ and mate.} Kg7 {[%emt 0:00:19]} 41. Qb2+ {[%emt 0:00:07]} Kh6 {[%emt 0:00:03]} 42. Qf6 {[%emt 0:00:12][%cal Rc4h4]} Qh3 {[%emt 0:00:10]} 43. Rh4+ {[%emt 0:00:04] Weighted Error Value: White=0.29 (precise) /Black=0.54.  Loses game:     	---       	Black=1      Mistake:       	White=1     	Black=6      Inaccurate:     	White=2     	Black=1      OK:         	White=11    	Black=6      Best:        	White=2     	Black=1} (43. Ree4 $142 Bg3 44. Rh4+ (44. Rxc5 $2 {too greedy.} Qh1+ 45. Kb2 Qxe4 $19) 44... Bxh4 45. Rxh4+ Qxh4 46. Qxh4+ Kg7 47. a5 f6 48. a6) 1-0

[Event "Grand Prix Romania 1st Stage 2024"]
[Site "Bucuresti"]
[Date "2024.03.24"]
[Round "5.12"]
[White "Mamedov, Rauf"]
[Black "Filev, Georgi"]
[Result "1-0"]
[ECO "A14"]
[WhiteElo "2651"]
[BlackElo "2210"]
[Annotator "TA"]
[PlyCount "89"]
[EventDate "2024.03.20"]
[EventType "swiss"]
[EventCountry "ROU"]
[SourceTitle "playchess.com"]
[Source "ChessBase"]
[SourceQuality "1"]
[TimeControl "900+5"]

{[%evp 14,89,26,14,11,6,23,-22,-26,-28,-10,-21,-23,-25,-15,-17,-25,-17,-9,-10,-32,-18,-24,-22,0,0,0,0,14,17,17,18,11,21,14,0,0,0,0,0,0,0,0,0,0,0,0,0,955,143,167,164,348,344,354,385,410,421,490,468,443,458,450,467,449,432,610,518,552,548,29994,29977,29977,29978,29978,29979,29980,29980]} 1. Nf3 {[%emt 0:00:03]} Nf6 {[%emt 0:00:21]} 2. g3 {[%emt 0:00:01]} e6 {[%emt 0:00:25]} 3. Bg2 {[%emt 0:00:02]} d5 {[%emt 0:00:02]} 4. c4 {[%emt 0:00:06]} Be7 {[%emt 0:00:32]} 5. b3 {[%emt 0:00:01]} d4 {[%emt 0:00:49]} 6. O-O {[%emt 0:00:06]} O-O {[%emt 0:00:05]} 7. e3 {[%emt 0:00:01]} Nc6 {[%emt 0:02:28]} 8. Bb2 {[%emt 0:00:02]} e5 {[%emt 0:00:11]} 9. exd4 {[%emt 0:00:07]} exd4 {[%emt 0:00:05]} 10. a3 {[%emt 0:00:07]} a5 {[%emt 0:00:16] The position is equal.} 11. d3 {[%emt 0:00:01]} Bc5 {[%emt 0:00:57]} 12. Nbd2 {[%emt 0:00:12]} Bf5 {[%emt 0:00:20]} 13. Qc2 {[%emt 0:00:06]} h6 {[%emt 0:00:15]} 14. Rfe1 {[%emt 0:00:02]} Qd6 {[%emt 0:01:15]} 15. Nh4 {[%emt 0:00:30]} Bh7 {[%emt 0:00:05]} 16. Ne4 {[%emt 0:01:09]} Nxe4 {[%emt 0:00:06]} 17. Bxe4 {[%emt 0:00:02]} Bxe4 {[%emt 0:01:48]} 18. Rxe4 {[%emt 0:00:02]} Rae8 {[%emt 0:01:44]} 19. Rae1 {[%emt 0:00:01]} Rxe4 {[%emt 0:00:06]} 20. Rxe4 {[%emt 0:00:01]} Bxa3 {[%emt 0:00:48]} 21. Nf5 $1 {[%emt 0:00:02][%csl LRd4,LRd6]} Qc5 {[%emt 0:00:14]} 22. Bxa3 {[%emt 0:01:03]} Qxa3 {[%emt 0:00:02]} 23. Qd2 {[%emt 0:00:12] aiming for Rg4.} Qc5 $1 {[%emt 0:00:41] [#]} (23... Qxb3 24. Rg4 Kh8 25. Rxg7) 24. Nxh6+ {[%emt 0:04:57]} gxh6 {[%emt 0:02:50]} 25. Qxh6 $40 {[%emt 0:00:01][%mdl 128] Black needs to defend precisely.} Qf5 {[%emt 0:00:19] Dodges Rg4+. Strongly threatening ...Ne5.} 26. Rh4 {[%emt 0:00:04][%csl Gh4][%cal Rh6h8]} f6 $1 {[%emt 0:00:00][%cal Oc6e5] ...Ne5! is the strong threat.} (26... Qxd3 27. Qh8#) 27. Qh8+ $1 {[%emt 0:01:24]} Kf7 {[%emt 0:00:01]} 28. Rh7+ {[%emt 0:00:01]} Ke8 $1 {[%emt 0:00:16]} 29. Qg7 {[%emt 0:00:01]} Qe6 {[%emt 0:00:16] Threatens to win with ...Rf7.} (29... Qxd3 30. Qd7#) 30. Qxc7 {[%emt 0:00:13]} Qe1+ {[%emt 0:00:12]} (30... Rf7 $11 {keeps the balance.} 31. Rh8+ Rf8) 31. Kg2 $16 {[%emt 0:00:01]} Qe6 {[%emt 0:00:03] Prevents Qd7+.} 32. Qxb7 {[%emt 0:00:07]} Ne7 $2 {[%emt 0:00:02]} (32... Nd8 {is a better defense.} 33. Qa7 Rf7 34. Rh8+ Rf8) 33. Qa8+ $18 {[%emt 0:00:31]} Qc8 {[%emt 0:00:02]} 34. Qxa5 {[%emt 0:00:10]} Qb7+ {[%emt 0:00:00]} 35. Kg1 {[%emt 0:00:06]} Rf7 {[%emt 0:00:09]} 36. Qh5 {[%emt 0:00:15]} Ng8 {[%emt 0:00:09]} 37. Qg6 {[%emt 0:00:30]} ({But not} 37. Rh8 Kf8 38. Qg6 (38. Qh6+ Rg7 $18) 38... Rg7 39. Qxf6+ Ke8) 37... Kf8 {[%emt 0:00:06]} 38. Rh8 {[%emt 0:00:01]} Rg7 {[%emt 0:00:08]} 39. Qxf6+ {[%emt 0:00:02]} Ke8 {[%emt 0:00:05]} (39... Qf7 $142 40. Qxd4 Qe6) 40. Qxd4 {[%emt 0:00:33]} Kf7 {[%emt 0:00:03]} 41. Rh5 {[%emt 0:00:50] And now Rf5+ would win.} Qxb3 {[%emt 0:00:06] ...Qd1+ would now be deadly.} 42. Rf5+ {[%emt 0:00:08] White mates.} Kg6 {[%emt 0:00:03] [#]} 43. Rg5+ $3 {[%emt 0:00:24][%mdl 512]} Kxg5 {[%emt 0:00:01]} 44. Qxg7+ {[%emt 0:00:01]} Kh5 {[%emt 0:00:08]} 45. Qxg8 {[%emt 0:00:02] Weighted Error Value: White=0.11 (very precise) /Black=0.47.  Missed win:     	White=1     	---        Mistake:       	---       	Black=3      Inaccurate:     	White=1     	Black=1      OK:         	White=18    	Black=15     Best:        	White=2     	Black=1      Strong:       	White=1     	Black=3} 1-0

[Event "Grand Prix Romania 1st Stage 2024"]
[Site "Bucuresti"]
[Date "2024.03.24"]
[Round "5.13"]
[White "Lupulescu, Constantin"]
[Black "Antonica, Dragos-Andrei"]
[Result "1-0"]
[ECO "C02"]
[WhiteElo "2579"]
[BlackElo "2366"]
[Annotator "TA"]
[PlyCount "79"]
[EventDate "2024.03.20"]
[EventType "swiss"]
[EventCountry "ROU"]
[SourceTitle "playchess.com"]
[Source "ChessBase"]
[SourceQuality "1"]
[TimeControl "900+5"]

{[%evp 12,79,14,0,0,0,0,0,0,0,0,0,0,0,5,0,3,13,13,0,0,8,0,0,0,0,0,10,13,0,0,0,0,0,0,-10,0,0,0,0,0,0,0,-15,0,0,0,0,0,0,12,14,118,117,116,114,110,97,97,89,190,12,702,717,1332,776,762,740,731,717]} 1. e4 {[%emt 0:00:01][%cal Be2e4,Be4e5][%mdl 32]} e6 {[%emt 0:00:02]} 2. d4 {[%emt 0:00:01]} d5 {[%emt 0:00:01]} 3. e5 {[%emt 0:00:01]} c5 {[%emt 0:00:02]} 4. c3 {[%emt 0:00:01]} Nc6 {[%emt 0:00:02]} 5. Nf3 {[%emt 0:00:02]} Qb6 {[%emt 0:00:02]} 6. Be2 {[%emt 0:00:01]} f6 {[%emt 0:00:07]} 7. O-O {[%emt 0:00:42]} fxe5 $1 {[%emt 0:00:10]} 8. Nxe5 {[%emt 0:00:06]} Nf6 {[%emt 0:00:18][%cal Rc5d4,Bg8f6,Bf6d7,Bd7e5,Be5f7][%mdl 32]} 9. Bh5+ {[%emt 0:03:49]} g6 {[%emt 0:00:40] The position is equal.} 10. Bf3 {[%emt 0:00:01]} Nxe5 {[%emt 0:01:57]} 11. dxe5 {[%emt 0:00:01]} Nd7 {[%emt 0:00:00]} 12. c4 $1 {[%emt 0:02:11]} Bg7 {[%emt 0:02:50]} 13. cxd5 {[%emt 0:01:00]} Nxe5 {[%emt 0:00:08]} 14. Nc3 {[%emt 0:01:08]} O-O {[%emt 0:00:28]} 15. Be4 {[%emt 0:00:01]} Bd7 {[%emt 0:01:29]} 16. Qc2 {[%emt 0:01:46]} Rae8 {[%emt 0:00:38]} 17. Bg5 {[%emt 0:01:08]} Nf7 {[%emt 0:01:06]} 18. Bf4 {[%emt 0:00:51]} exd5 {[%emt 0:01:24]} 19. Bxd5 {[%emt 0:00:09]} Be6 {[%emt 0:01:16]} 20. Rae1 {[%emt 0:00:52] [#] Threatens to win with Bxe6.} Bxd5 {[%emt 0:01:16]} 21. Nxd5 {[%emt 0:00:01]} Qxb2 {[%emt 0:00:01]} 22. Ne7+ $1 {[%emt 0:00:38]} Kh8 {[%emt 0:00:26]} 23. Qxc5 {[%emt 0:00:02]} Qd4 {[%emt 0:00:26]} 24. Qxd4 {[%emt 0:00:47]} Bxd4 {[%emt 0:00:01]} 25. Re4 {[%emt 0:00:31]} Bf6 {[%emt 0:00:25]} 26. Rfe1 {[%emt 0:00:01][%cal Oe7g6] Nxg6+! would now be deadly.} Rd8 $1 {[%emt 0:00:03]} 27. g3 {[%emt 0:00:14]} Rd7 {[%emt 0:00:21]} 28. h4 $40 {[%emt 0:00:02][%cal Bh2h4,Bh4h5,Bh5h6][%mdl 160] Repels Ng5. Black needs to defend precisely.} Rfd8 {[%emt 0:00:52]} 29. Kg2 {[%emt 0:00:02]} Kg7 {[%emt 0:00:05] And now ...Kf8 would win.} 30. Re6 {[%emt 0:00:08]} Rd4 {[%emt 0:00:28]} ({But not} 30... Re8 $2 31. Nf5+ gxf5 32. Rxe8 $18) 31. h5 {[%emt 0:00:05]} Bxe7 {[%emt 0:00:25]} (31... Rd1 $11) 32. Rxe7 $16 {[%emt 0:00:13]} R4d7 {[%emt 0:00:01]} 33. h6+ {[%emt 0:00:10]} Kf8 {[%emt 0:00:03]} 34. R7e6 {[%emt 0:00:07] White is much more active.} b6 {[%emt 0:00:15]} 35. Bc1 {[%emt 0:00:19]} Rd3 {[%emt 0:00:06] [#] Against Ba3+} (35... Nd6 $16 {keeps fighting.} 36. Bd2 Nb5) 36. Re7 $2 {[%emt 0:00:03]} (36. a4 $1 $18) 36... g5 $2 {[%emt 0:00:03][%mdl 8192] Loses the game.} (36... Rd1 $11) 37. Rxa7 $18 {[%emt 0:00:07] White is clearly winning.} R8d5 {[%emt 0:00:06]} 38. Ba3+ {[%emt 0:00:14]} Rxa3 {[%emt 0:00:04]} 39. Rxa3 {[%emt 0:00:01]} Nxh6 {[%emt 0:00:02]} 40. Ra7 {[%emt 0:00:02] Weighted Error Value: White=0.13 (very precise) /Black=0.14 (very precise) .  Loses game:     	---       	Black=1      Missed win:     	White=1     	---        Mistake:       	---       	Black=2      Inaccurate:     	---       	Black=1      OK:         	White=14    	Black=12     Best:        	White=1     	Black=4      Strong:       	White=2     	Black=1} 1-0

[Event "Grand Prix Romania 1st Stage 2024"]
[Site "Bucuresti"]
[Date "2024.03.24"]
[Round "5.14"]
[White "Costachi, Mihnea"]
[Black "Nedelcu, Teodor-Cosmin"]
[Result "1-0"]
[ECO "D36"]
[WhiteElo "2470"]
[BlackElo "2306"]
[Annotator "TA"]
[PlyCount "67"]
[EventDate "2024.03.20"]
[EventType "swiss"]
[EventCountry "ROU"]
[SourceTitle "playchess.com"]
[Source "ChessBase"]
[SourceQuality "1"]
[TimeControl "900+5"]

{[%evp 24,67,33,32,27,18,33,36,34,19,91,100,113,108,109,118,128,93,326,330,344,358,367,360,362,376,350,303,565,555,563,527,600,522,647,153,136,72,29991,29971,29970,29971,6682,5893,29996,29997]} 1. d4 {[%emt 0:00:01]} d5 {[%emt 0:00:00]} 2. c4 {[%emt 0:00:03]} e6 {[%emt 0:00:01]} 3. Nc3 {[%emt 0:00:02]} Nf6 {[%emt 0:00:02]} 4. cxd5 {[%emt 0:00:22]} exd5 {[%emt 0:00:01]} 5. Bg5 {[%emt 0:00:14]} c6 {[%emt 0:00:02]} 6. Qc2 {[%emt 0:00:01]} Be7 {[%emt 0:00:09]} 7. e3 {[%emt 0:00:03]} O-O {[%emt 0:00:01]} 8. Bd3 {[%emt 0:00:04]} h6 {[%emt 0:00:02]} 9. Bf4 {[%emt 0:01:14]} Nbd7 {[%emt 0:00:13]} 10. h3 {[%emt 0:00:13]} Re8 {[%emt 0:00:08]} 11. Nf3 {[%emt 0:00:30][%cal Bg1f3,Bf3e5,Be5g4][%mdl 32]} Nf8 {[%emt 0:00:15]} 12. O-O {[%emt 0:00:28]} Bd6 {[%emt 0:00:42]} 13. Ne5 {[%emt 0:00:14]} Qc7 {[%emt 0:00:38]} 14. Bh2 {[%emt 0:00:16]} N6d7 {[%emt 0:00:24][%cal Rd7e5,Bf6d7,Bd7b6,Bb6c4][%mdl 32]} 15. f4 {[%emt 0:01:23]} f6 {[%emt 0:00:07] White is slightly better.} 16. Ng4 {[%emt 0:01:12]} (16. Qf2 $5) 16... h5 {[%emt 0:02:05]} (16... Nb6 $1 $11) 17. Bg6 $16 {[%emt 0:00:19]} (17. Nh6+ $2 gxh6 18. Rf3 (18. e4 dxe4 19. Nxe4 Rxe4 $17) 18... f5 19. Bxf5 Nf6 $19) 17... Re7 {[%emt 0:00:07]} (17... Nxg6 $2 18. Qxg6 hxg4 19. Qxe8+ Nf8 20. hxg4 $18) 18. Bxh5 {[%emt 0:00:08]} Nb6 {[%emt 0:00:03]} 19. Rae1 $36 {[%emt 0:01:33][%mdl 2048] Black is under strong pressure.} Nc4 {[%emt 0:00:02] [#] aiming for ...Bxg4.} 20. e4 {[%emt 0:00:21][%cal Be3e4,Be4f5][%mdl 32] e5 is the strong threat.} f5 $2 {[%emt 0:00:50]} 21. exf5 $18 {[%emt 0:01:30]} Rxe1 {[%emt 0:00:21]} 22. Rxe1 {[%emt 0:00:01]} Bxf4 {[%emt 0:00:01]} 23. Qf2 {[%emt 0:00:37]} Bxh2+ {[%emt 0:00:43]} 24. Nxh2 {[%emt 0:00:01] Threatens to win with Re8.} Qd8 {[%emt 0:00:53]} 25. Qf4 {[%emt 0:00:45] Against Nd6. Strongly threatening Ng4.} Bd7 $2 {[%emt 0:00:29]} (25... Nd6 {was called for.} 26. g4 Qf6) 26. Ng4 {[%emt 0:00:02]} Nh7 {[%emt 0:01:10]} 27. b3 {[%emt 0:00:10]} Nb6 {[%emt 0:00:55]} 28. Bg6 {[%emt 0:00:29]} Nf8 {[%emt 0:00:58]} 29. Qd6 $2 {[%emt 0:01:43]} (29. Re3 $18 {has better winning chances.} Qh4 30. Bf7+ Kh8 31. Ne2 (31. Rg3 Be8 $18)) 29... Qg5 $16 {[%emt 0:01:50] Prevents Nh6+} 30. Qe7 {[%emt 0:00:54] Repels Rd8. White is much more active.} (30. Ne5 $142 {Hoping for Bf7+.} Nxg6 31. Qxg6 (31. Nxd7 $2 {too greedy.} Nf4 $19) (31. fxg6 Bxh3 32. Re2 Qc1+ 33. Kh2 Bf5 $11) 31... Qxf5 32. Qg3) 30... Qd2 $2 {[%emt 0:00:41][%mdl 8192] [#]} (30... Qxe7 $16 31. Rxe7 Nc8) 31. Bf7+ {[%emt 0:00:15]} Kh8 {[%emt 0:00:23]} 32. Qh4+ {[%emt 0:00:01]} Nh7 {[%emt 0:00:01]} 33. Bg6 {[%emt 0:00:03][%csl Gg6][%cal Rh4h7]} Qxd4+ {[%emt 0:00:02]} 34. Kh1 {[%emt 0:00:08] Weighted Error Value: White=0.39/Black=0.79.  Loses game:     	---       	Black=2      Mistake:       	---       	Black=2      OK:         	White=6     	Black=8      Best:        	White=2     	---} 1-0

[Event "Grand Prix Romania 1st Stage 2024"]
[Site "Bucuresti"]
[Date "2024.03.24"]
[Round "5.15"]
[White "Serban, Cristian-Stefan"]
[Black "Bulmaga, Irina"]
[Result "0-1"]
[ECO "E97"]
[WhiteElo "2309"]
[BlackElo "2429"]
[Annotator "TA"]
[PlyCount "146"]
[EventDate "2024.03.20"]
[EventType "swiss"]
[EventCountry "ROU"]
[SourceTitle "playchess.com"]
[Source "ChessBase"]
[SourceQuality "1"]
[TimeControl "900+5"]

{[%evp 47,146,-144,-99,-96,-86,-212,-118,-261,-252,-245,-208,-173,-166,-147,-106,-158,-166,-162,-133,-125,-103,-108,-100,-102,-92,-251,-249,-256,-233,-230,-243,-270,-217,-5193,-4120,-4752,-2593,-10000,-10002,-12593,-9525,-29964,-29965,-29968,-29970,-29971,-29970,-29969,-29971,-29971,-29972,-29971,-29969,-29969,-6528,-29973,-29974,-29974,-29975,-29978,-29976,-29976,-29977,-29977,-29977,-29977,-29977,-29977,-139,-139,-139,-139,-139,-139,-139,-145,-139,-139,-139,-139,-139,-29974,-29975,-29975,-29976,-29976,-29977,-29976,-29977,-29977,-29978,-29978,-29979,-29981,-29982,-29988,-29989,-29989,-29990,-29991,-29992]} 1. d4 {[%emt 0:00:02]} Nf6 {[%emt 0:00:02]} 2. c4 {[%emt 0:00:03]} g6 {[%emt 0:00:02]} 3. Nc3 {[%emt 0:00:02]} Bg7 {[%emt 0:00:02]} 4. e4 {[%emt 0:00:02]} d6 {[%emt 0:00:02]} 5. Nf3 {[%emt 0:00:03]} O-O {[%emt 0:00:03]} 6. Be2 {[%emt 0:00:02]} e5 {[%emt 0:00:03]} 7. O-O {[%emt 0:00:04]} Nc6 {[%emt 0:00:02]} 8. d5 {[%emt 0:00:02]} Ne7 {[%emt 0:00:02]} 9. b4 {[%emt 0:00:02]} Nh5 {[%emt 0:00:04]} 10. Re1 {[%emt 0:00:03]} a5 {[%emt 0:00:03]} 11. bxa5 {[%emt 0:00:12]} Rxa5 {[%emt 0:00:03]} 12. Nd2 {[%emt 0:01:30]} Nf4 {[%emt 0:00:06]} 13. Bf1 {[%emt 0:00:01]} c5 {[%emt 0:02:06]} 14. dxc6 {[%emt 0:00:27]} bxc6 {[%emt 0:00:11]} 15. Nb3 {[%emt 0:00:47]} Ra8 {[%emt 0:00:02]} 16. a4 {[%emt 0:00:03]} c5 {[%emt 0:00:15] E97: Königsindisch (Klassisches System).} 17. Nb5 {[%emt 0:00:16]} Ra6 {[%emt 0:00:04]} 18. Bxf4 {[%emt 0:01:05]} exf4 {[%emt 0:00:02]} 19. Ra2 {[%emt 0:00:01]} Be5 {[%emt 0:00:28]} 20. a5 $146 {[%emt 0:01:57]} ({Predecessor:} 20. Rd2 Qb6 21. a5 Qb8 22. g3 h5 23. Qc1 h4 24. Rd3 g5 25. gxh4 g4 26. h3 {0-1 Moskalenko,V (2480)-Atalik,S (2535) Chalkida op 1st 1996}) 20... Nc6 {[%emt 0:01:02]} 21. Rd2 {[%emt 0:02:01]} Qe7 {[%emt 0:00:13]} 22. Ra2 {[%emt 0:06:31]} Be6 {[%emt 0:00:19]} 23. Qd2 {[%emt 0:00:27]} h5 {[%emt 0:01:04]} 24. Rd1 {[%emt 0:00:02]} Nb4 {[%emt 0:00:14]} 25. Ra3 {[%emt 0:00:12]} Rfa8 {[%emt 0:00:26]} 26. Be2 {[%emt 0:00:42]} (26. Nc3 $17) 26... Kg7 {[%emt 0:00:07]} (26... f3 $1 $19 27. Bxf3 Bxc4) 27. Nc3 {[%emt 0:00:06]} (27. N5d4 $17 {ist eine bessere Verteidigung.}) 27... f3 $19 {[%emt 0:02:00]} 28. Bxf3 {[%emt 0:00:16]} Bxc4 {[%emt 0:00:03]} 29. Be2 {[%emt 0:00:22]} Bxb3 {[%emt 0:00:44]} 30. Rxb3 {[%emt 0:00:01]} Rxa5 {[%emt 0:00:02]} 31. Nd5 {[%emt 0:00:01]} ({Günstiger ist} 31. Bc4) 31... Nxd5 {[%emt 0:00:07]} 32. Qxd5 {[%emt 0:00:01]} Ra1 {[%emt 0:00:27]} 33. Rbb1 {[%emt 0:00:04]} Qf6 {[%emt 0:01:45]} 34. Rxa1 {[%emt 0:00:08]} Rxa1 {[%emt 0:00:03]} 35. Rxa1 {[%emt 0:00:01]} Bxa1 {[%emt 0:00:01]} 36. f3 $2 {[%emt 0:00:19]} (36. Qb3 $17) 36... Bd4+ $19 {[%emt 0:00:06]} 37. Kh1 {[%emt 0:00:03]} Qf4 {[%emt 0:00:17]} 38. Qb3 {[%emt 0:00:01] [#]} h4 $1 {[%emt 0:00:45]} 39. Qd1 {[%emt 0:00:01]} h3 {[%emt 0:00:27]} 40. g3 $2 {[%emt 0:00:02]} (40. Qf1) 40... Qe3 $19 {[%emt 0:00:04]} 41. Qf1 {[%emt 0:00:03]} g5 {[%emt 0:00:15]} 42. g4 {[%emt 0:00:20]} Kf6 {[%emt 0:00:15]} 43. Bc4 {[%emt 0:00:02]} Qf2 {[%emt 0:00:39]} 44. Qxf2 {[%emt 0:00:05]} Bxf2 {[%emt 0:00:02]} 45. Bf1 {[%emt 0:00:00]} Ke5 {[%emt 0:00:04]} 46. Bxh3 {[%emt 0:00:02]} c4 {[%emt 0:00:08]} 47. Bf1 {[%emt 0:00:01]} Kd4 {[%emt 0:00:02]} 48. Be2 {[%emt 0:00:02]} c3 {[%emt 0:00:09]} 49. Bd1 {[%emt 0:00:02]} Kd3 {[%emt 0:00:03]} 50. Kg2 {[%emt 0:00:01]} Bh4 {[%emt 0:00:08]} 51. f4 {[%emt 0:00:17]} f6 {[%emt 0:00:12]} 52. fxg5 {[%emt 0:00:06]} fxg5 {[%emt 0:00:03]} 53. Kf3 {[%emt 0:00:06]} c2 {[%emt 0:00:23]} 54. Bxc2+ {[%emt 0:00:02]} Kxc2 {[%emt 0:00:02]} 55. Ke2 {[%emt 0:00:04]} Kc3 {[%emt 0:00:09]} 56. Ke3 {[%emt 0:00:01]} Kc4 {[%emt 0:00:24]} 57. e5 {[%emt 0:00:11]} Kd5 $2 {[%emt 0:00:03]} (57... dxe5 {setzt Matt} 58. Ke4 Kc3 59. Ke3 Be1 60. Ke4 Kd2 61. Kxe5 Bh4 62. h3 Ke3 63. Ke6 Kf2 64. Kf5 Kg2 65. Ke4 Kxh3 66. Kf3 Bg3 67. Ke2 Kxg4 68. Ke3 Bh4 69. Ke4 Kh3 70. Kf3 g4+ 71. Kf4 g3 72. Kf5 g2 73. Ke4 g1=Q (73... g1=B $2 74. Kf5 $19) 74. Kd5 Qb6 75. Kc4 Qc6+ 76. Kd4 Kg3 77. Ke3 Qd5 78. Ke2 Qd4 79. Ke1 Kf3+ 80. Kf1 Qf2#) 58. exd6 $17 {[%emt 0:00:02]} Kxd6 {[%emt 0:00:01]} 59. Kd4 {[%emt 0:00:04]} Ke6 {[%emt 0:00:04]} 60. Ke4 {[%emt 0:00:01]} Be1 {[%emt 0:00:03]} 61. Kd4 {[%emt 0:00:14]} Kd6 {[%emt 0:00:04]} 62. Ke4 {[%emt 0:00:01]} Kc5 {[%emt 0:00:02]} 63. Kf5 {[%emt 0:00:03]} Bh4 {[%emt 0:00:01]} 64. Ke5 $2 {[%emt 0:00:02][%mdl 8192]} (64. Ke4 $17 Kc4 65. h3 Kc3 66. Ke3 Kc2 67. Ke2 Kc1 68. Ke3 Kd1 69. Kf3 Ke1 70. Ke3 Kf1 71. Kf3 Kg1 72. Ke3 Kg2 73. Ke2 Kxh3 74. Kf3 Bg3 75. Ke4 Kxg4 76. Ke3 Kf5 77. Kd4 Bh4 78. Kd3 g4 79. Ke3 Ke5 80. Ke2 Ke4 81. Kd2 g3 82. Ke1 g2+ 83. Kd2 g1=Q (83... g1=R {führt zum Matt.} 84. Kc2 Be1 85. Kc1 Kd3 86. Kb2 Bc3+ 87. Kb3 Rb1+ 88. Ka4 Kc4 89. Ka3 Ra1#) 84. Kc2 Qc5+ 85. Kb2 Qb4+ 86. Ka2 Bg5 87. Ka1 Bf6+ 88. Ka2 Qb2#) 64... Kc4 {[%emt 0:00:02]} 65. Ke4 {[%emt 0:00:01]} Kc3 {[%emt 0:00:02]} 66. Ke3 {[%emt 0:00:01]} Kc2 {[%emt 0:00:01]} 67. Ke2 {[%emt 0:00:01]} Kc1 {[%emt 0:00:01]} 68. Ke3 {[%emt 0:00:31] [#]} Kd1 $1 {[%emt 0:00:02]} 69. Kf3 {[%emt 0:00:02]} Kd2 {[%emt 0:00:03]} 70. Kg2 {[%emt 0:00:02]} Ke3 {[%emt 0:00:03]} 71. Kh3 {[%emt 0:00:03]} Kf4 {[%emt 0:00:01]} 72. Kg2 {[%emt 0:00:04]} Kxg4 {[%emt 0:00:03]} 73. h3+ {[%emt 0:00:05]} Kf4 {[%emt 0:00:01]} 0-1